fUST/lending_fUST_20250813
["ID","MTS","AMOUNT","RATE_DAILY","PERIOD"]
[378947051,1755077439791,-292.322,0.00023415,3]
[378947053,1755077439800,-460.0,0.00023444,2]
[378947055,1755077439810,-2200.0,0.00023476,2]
[378947056,1755077439819,-500.0,0.00023515,2]
[378947058,1755077439828,-500.0,0.00023547,5]
[378947060,1755077439839,-450.0,0.00023562,2]
[378947062,1755077439848,-438.09296961,0.00023562,2]
[378947064,1755077439858,-207.0,0.0002357,2]
[378947066,1755077439867,-1004.23343853,0.00023583,2]
[378947068,1755077439877,-160.0,0.00023591,3]
[378947070,1755077439886,-1990.0,0.00023593,2]
[378947072,1755077439896,-160.0,0.000236,3]
[378947074,1755077439905,-160.0,0.000236,3]
[378947076,1755077439914,-160.0,0.000236,3]
[378947077,1755077439924,-160.0,0.000236,3]
[378947078,1755077439932,-1400.0,0.00023659,2]
[378947079,1755077439942,-562.9,0.00023697,4]
[378947080,1755077439951,-151.0,0.000237,7]
[378947081,1755077439961,-650.0,0.00023708,2]
[378947082,1755077439970,-430.59070692,0.00023708,2]
[378947083,1755077439979,-2000.0,0.00023712,2]
[378947084,1755077439989,-3087.56,0.00023753,30]
[378947085,1755077439998,-1990.0,0.00023776,2]
[378947086,1755077440008,-1990.0,0.00023843,2]
[378947087,1755077440018,-1500.0,0.00023864,2]
[378947088,1755077440028,-2500.0,0.00023864,2]
[378947089,1755077440038,-207.0,0.0002388,2]
[378947090,1755077440047,-600.0,0.00023887,2]
[378947091,1755077440058,-4000.0,0.00023898,4]
[378947092,1755077440067,-3250.77,0.000239,2]
[378947093,1755077440077,-12671.12990413,0.0002398,7]
[378947094,1755077440086,-560.0,0.00023992,2]
[378947096,1755077440096,-160.0,0.00024,7]
[378947098,1755077440106,-160.0,0.00024,10]
[378947100,1755077440115,-160.0,0.00024,7]
[378947102,1755077440125,-160.0,0.00024,10]
[378947104,1755077440135,-160.0,0.00024,7]
[378947106,1755077440144,-160.0,0.00024,10]
[378947108,1755077440154,-160.0,0.00024,7]
[378947110,1755077440164,-160.0,0.00024,10]
[378947112,1755077440176,-216.72950928,0.00024,7]
[378947114,1755077440185,-216.72950928,0.00024,10]
[378947116,1755077440195,-843.29866057,0.00024,7]
[378947118,1755077440205,-843.29866057,0.00024,10]
[378947120,1755077440214,-215.55264861,0.00024,7]
[378947122,1755077440223,-232.03317797,0.00024,7]
[378947124,1755077440234,-232.03317797,0.00024,10]
[378947126,1755077440243,-160.0,0.00024,7]
[378947128,1755077440253,-417.15472785,0.00024,7]
[378947130,1755077440262,-160.0,0.00024,7]
[378947132,1755077440272,-160.0,0.00024,10]
[378947134,1755077440281,-562.9,0.00024059,4]
[378947136,1755077440290,-500.0,0.00024095,5]
[378947138,1755077440301,-212.90054351,0.0002411,2]
[378947139,1755077440311,-248.0,0.00024164,7]
[378947141,1755077440321,-207.0,0.0002419,2]
[378947143,1755077440330,-151.0,0.000242,10]
[378947145,1755077440339,-750.0,0.00024256,2]
[378947147,1755077440349,-151.0,0.000243,7]
[378947149,1755077440358,-823.0,0.00024352,2]
[378947151,1755077440367,-3000.0,0.00024412,2]
[378947153,1755077440377,-562.9,0.00024422,4]
[378947155,1755077440386,-750.0,0.00024435,2]
[378947157,1755077440395,-207.0,0.0002449,2]
[378947159,1755077440404,-500.0,0.00024529,9]
[378947161,1755077440413,-500.0,0.00024529,9]
[378947163,1755077440422,-660.0,0.0002454,2]
[378947165,1755077440431,-11630.12968845,0.0002455,2]
[378947167,1755077440441,-566176.21811808,0.0002464,7]
[378947169,1755077440450,-461.84428375,0.0002464,7]
[378947171,1755077440460,-500.0,0.00024643,5]
[378947173,1755077440471,-394747.98642345,0.0002465,2]
[378947175,1755077440480,-504.18794256,0.0002465,2]
[378947177,1755077440489,-46840.6712987,0.0002465,2]
[378947179,1755077440499,-500.0,0.00024657,4]
[378947181,1755077440508,-380.0,0.00024658,2]
[378947183,1755077440518,-200.0,0.00024658,15]
[378947185,1755077440527,-200.0,0.00024658,2]
[378947187,1755077440536,-200.402456,0.00024658,7]
[378947189,1755077440547,-200.402456,0.00024658,7]
[378947191,1755077440559,-200.402456,0.00024658,7]
[378947193,1755077440569,-200.402456,0.00024658,7]
[378947195,1755077440579,-200.402456,0.00024658,7]
[378947197,1755077440588,-200.402456,0.00024658,7]
[378947199,1755077440598,-200.402456,0.00024658,7]
[378947201,1755077440608,-200.402456,0.00024658,7]
[378947203,1755077440617,-200.402456,0.00024658,7]
[378947205,1755077440627,-200.402456,0.00024658,7]
[378947207,1755077440642,-200.402456,0.00024658,7]
[378947209,1755077440659,-200.402456,0.00024658,7]
[378947211,1755077440669,-200.402456,0.00024658,7]
[378947213,1755077440678,-200.402456,0.00024658,7]
[378947215,1755077440688,-200.402456,0.00024658,7]
[378947217,1755077440697,-200.402456,0.00024658,7]
[378947219,1755077440707,-200.402456,0.00024658,7]
[378947221,1755077440716,-200.402456,0.00024658,7]
[378947223,1755077440726,-200.402456,0.00024658,7]
[378947225,1755077440735,-200.402455,0.00024658,7]
[378947228,1755077440745,-151.0,0.00024658,2]
[378947229,1755077440754,-500.0,0.0002468,2]
[378947231,1755077440764,-500.0,0.0002468,2]
[378947233,1755077440773,-500.0,0.0002469,2]
[378947235,1755077440782,-12668.91051122,0.000247,3]
[378947237,1755077440791,-868.12368919,0.000247,7]
[378947239,1755077440800,-528.09767282,0.000247,7]
[378947241,1755077440809,-160.0,0.000247,7]
[378947243,1755077440818,-160.0,0.000247,3]
[378947245,1755077440827,-160.0,0.000247,7]
[378947247,1755077440837,-216.72950928,0.000247,3]
[378947249,1755077440846,-216.72950928,0.000247,7]
[378947251,1755077440855,-843.29866057,0.000247,7]
[378947253,1755077440866,-232.03317797,0.000247,7]
[378947255,1755077440877,-160.0,0.000247,7]
[378947258,1755077440887,-417.15472785,0.000247,7]
[378947259,1755077440895,-1292.4038749,0.00024704,2]
[378947261,1755077440904,-206.0,0.0002474,11]
[378947263,1755077440914,-1400.0,0.00024755,2]
[378947265,1755077440929,-16508.93228222,0.00024774,2]
[378947267,1755077440938,-562.9,0.00024784,4]
[378947269,1755077440948,-160.0,0.0002479,4]
[378947271,1755077440957,-161.03162672,0.0002479,5]
[378947273,1755077440967,-2000.0,0.000248,2]
[378947275,1755077440976,-207.0,0.000248,2]
[378947277,1755077440986,-454.49541864,0.00024804,2]
[378947279,1755077440996,-328624.22748297,0.0002489,30]
[378947281,1755077441005,-12671.21867243,0.0002489,30]
[378947283,1755077441015,-250.0,0.000249,2]
[378947285,1755077441024,-250.0,0.000249,2]
[378947287,1755077441034,-741162.375507,0.000249,2]
[378947290,1755077441047,-417.15472785,0.000249,30]
[378947291,1755077441056,-151.0,0.00024932,2]
[378947293,1755077441065,-617.0,0.00024932,2]
[378947295,1755077441075,-2000.0,0.0002496,2]
[378947297,1755077441084,-3500.0,0.0002496,2]
[378947299,1755077441094,-151.19837426,0.00024983,2]
[378947301,1755077441104,-2044.15093799,0.00025,14]
[378947304,1755077441114,-9210.23791107,0.00025,2]
[378947306,1755077441124,-1066.49411514,0.00025,2]
[378947308,1755077441134,-16043.89031956,0.00025,2]
[378947310,1755077441143,-2626.2784749,0.00025,2]
[378947312,1755077441154,-40000.0,0.00025,2]
[378947314,1755077441164,-208.23714625,0.00025,2]
[378947316,1755077441173,-10364.0,0.00025,2]
[378947318,1755077441182,-359.48298822,0.00025,2]
[378947320,1755077441192,-500.0,0.00025,2]
[378947322,1755077441201,-110075.71152052,0.00025,2]
[378947324,1755077441210,-200.0,0.00025,7]
[378947326,1755077441220,-600.0,0.00025,2]
[378947328,1755077441229,-18533.0,0.00025,2]
[378947330,1755077441238,-1756.31898867,0.00025,2]
[378947332,1755077441247,-4973.42741093,0.00025,30]
[378947334,1755077441257,-250.0,0.00025,7]
[378947336,1755077441266,-250.0,0.00025,7]
[378947338,1755077441275,-250.0,0.00025,7]
[378947340,1755077441284,-250.0,0.00025,7]
[378947342,1755077441293,-389.6,0.00025,7]
[378947344,1755077441303,-11903.137,0.00025,3]
[378947345,1755077441314,-1278.72127068,0.00025,3]
[378947347,1755077441324,-160.0,0.00025,30]
[378947349,1755077441334,-500.0,0.00025,5]
[378947351,1755077441344,-500.0,0.00025,10]
[378947353,1755077441353,-500.0,0.00025,5]
[378947355,1755077441362,-1995.130064,0.00025,5]
[378947357,1755077441372,-500.0,0.00025,5]
[378947359,1755077441381,-500.0,0.00025,5]
[378947371,1755077441483,-522.50489313,0.00025,10]
[378947373,1755077441493,-160.0,0.00025,30]
[378947375,1755077441503,-160.0,0.00025,30]
[378947377,1755077441514,-216.72950928,0.00025,30]
[378947379,1755077441524,-843.29866057,0.00025,30]
[378947381,1755077441534,-232.03317797,0.00025,30]
[378947383,1755077441544,-160.0,0.00025,30]
[378947385,1755077441556,-1078.22854447,0.00025042,2]
[378947387,1755077441567,-1078.22854447,0.00025042,2]
[378947389,1755077441577,-760.0,0.00025088,2]
[378947391,1755077441587,-11630.12968842,0.00025144,2]
[378947393,1755077441597,-29183.78091752,0.00025164,2]
[378947395,1755077441606,-500.0,0.00025191,5]
[378947397,1755077441616,-151.0,0.00025206,2]
[378947399,1755077441625,-617.0,0.00025206,2]
[378947401,1755077441635,-200.0,0.00025384,20]
[378947403,1755077441645,-200.0,0.00025384,20]
[378947405,1755077441654,-200.0,0.00025384,20]
[378947407,1755077441664,-200.0,0.00025384,20]
[378947409,1755077441673,-200.0,0.00025384,20]
[378947411,1755077441683,-200.0,0.00025384,20]
[378947413,1755077441693,-200.0,0.00025384,20]
[378947415,1755077441702,-200.0,0.00025384,20]
[378947417,1755077441713,-200.0,0.00025384,20]
[378947419,1755077441723,-200.0,0.00025384,20]
[378947421,1755077441733,-200.0,0.00025384,20]
[378947424,1755077441744,-200.0,0.00025384,20]
[378947426,1755077441754,-200.0,0.00025384,20]
[378947428,1755077441764,-200.0,0.00025384,20]
[378947430,1755077441773,-200.0,0.00025384,20]
[378947432,1755077441783,-292.0,0.00025384,20]
[378947434,1755077441793,-900.0,0.00025469,3]
[378947436,1755077441802,-16326.97444966,0.0002547,2]
[378947438,1755077441812,-224.10518526,0.0002548,2]
[378947440,1755077441821,-617.0,0.0002548,2]
[378947442,1755077441831,-1000.0,0.000255,2]
[378947444,1755077441840,-4000.0,0.00025508,2]
[378947446,1755077441850,-408.0,0.00025548,2]
[378947448,1755077441860,-2151.0,0.00025548,2]
[378947450,1755077441870,-860.0,0.00025636,2]
[378947452,1755077441879,-11630.12968842,0.00025739,2]
[378947454,1755077441889,-500.0,0.00025739,5]
[378947456,1755077441899,-617.0,0.00025754,2]
[378947458,1755077441908,-281.34,0.00025757,7]
[378947460,1755077441919,-242.0,0.00025775,7]
[378947462,1755077441938,-2000.0,0.000258,2]
[378947464,1755077441947,-1400.0,0.00025851,2]
[378947466,1755077441956,-4000.0,0.00025932,4]
[378947468,1755077441966,-350.0,0.00025999,30]
[378947470,1755077441976,-38778.08316305,0.00026,10]
[378947472,1755077441985,-520.33052254,0.00026,2]
[378947474,1755077441995,-19900.0,0.00026,2]
[378947476,1755077442004,-161.0,0.00026,5]
[378947478,1755077442013,-2655.0,0.00026,10]
[378947480,1755077442023,-2081.23632157,0.00026,2]
[378947482,1755077442032,-484.89445498,0.00026,5]
[378947484,1755077442041,-12673.43806534,0.00026,10]
[378947486,1755077442053,-528.09767282,0.00026,10]
[378947488,1755077442062,-160.0,0.00026,10]
[378947490,1755077442072,-160.0,0.00026,10]
[378947492,1755077442081,-216.72950928,0.00026,10]
[378947494,1755077442091,-843.29866057,0.00026,10]
[378947496,1755077442101,-232.03317797,0.00026,10]
[378947498,1755077442113,-417.15472785,0.00026,10]
[378947500,1755077442133,-617.0,0.00026028,2]
[378947502,1755077442152,-2512.54133764,0.00026056,2]
[378947504,1755077442162,-4500.0,0.00026056,2]
[378947506,1755077442171,-191.18758145,0.0002616,2]
[378947508,1755077442180,-960.0,0.00026184,2]
[378947510,1755077442189,-500.0,0.00026287,5]
[378947512,1755077442199,-617.0,0.00026302,2]
[378947514,1755077442208,-11630.12968842,0.00026333,2]
[378947517,1755077442217,-156.76,0.00026402,7]
[378947519,1755077442226,-172.36,0.00026438,7]
[378947521,1755077442235,-166.07,0.00026438,7]
[378947523,1755077442244,-162.98,0.00026481,7]
[378947525,1755077442254,-172.27,0.00026485,7]
[378947527,1755077442263,-166.07,0.00026485,7]
[378947529,1755077442272,-156.76,0.00026502,7]
[378947531,1755077442282,-172.37005732,0.00026509,7]
[378947533,1755077442291,-166.0764199,0.00026509,7]
[378947535,1755077442300,-1152.0,0.00026549,2]
[378947537,1755077442310,-617.0,0.00026576,2]
[378947539,1755077442319,-162.98812436,0.00026581,7]
[378947541,1755077442328,-172.30281159,0.00026585,7]
[378947543,1755077442338,-166.10485294,0.00026585,7]
[378947545,1755077442347,-156.76,0.00026602,7]
[378947547,1755077442356,-5000.0,0.00026604,2]
[378947551,1755077442366,-2524.43,0.00026682,7]
[378947555,1755077442374,-156.76,0.00026702,7]
[378947558,1755077442384,-1006.003522,0.00026732,2]
[378947576,1755077442560,-53.996478,0.00026732,2]
[378947578,1755077442569,-2524.43,0.00026782,7]
[378947580,1755077442579,-1039.5,0.000268,2]
[378947582,1755077442588,-3769.29276945,0.000268,3]
[378947584,1755077442598,-156.76,0.00026802,7]
[378947586,1755077442608,-500.0,0.00026835,5]
[378947588,1755077442618,-617.0,0.0002685,2]
[378947590,1755077442628,-2524.43,0.00026882,7]
[378947592,1755077442638,-156.76,0.00026902,7]
[378947594,1755077442647,-29183.78091752,0.00026918,6]
[378947596,1755077442656,-11630.12968842,0.00026928,2]
[378947598,1755077442665,-1400.0,0.00026947,2]
[378947600,1755077442676,-308.61235665,0.00027,50]
[378947602,1755077442688,-659.12700754,0.00027,12]
[378947604,1755077442697,-20229.32335013,0.00027,10]
[378947606,1755077442706,-7648.50500047,0.00027,30]
[378947608,1755077442715,-160.0,0.00027,5]
[378947610,1755077442725,-12675.74622655,0.00027,10]
[378947613,1755077442735,-528.09767282,0.00027,10]
[378947615,1755077442745,-528.09767282,0.00027,3]
[378947617,1755077442754,-160.0,0.00027,10]
[378947620,1755077442763,-160.0,0.00027,10]
[378947622,1755077442773,-216.72950928,0.00027,10]
[378947624,1755077442782,-843.29866057,0.00027,10]
[378947626,1755077442792,-232.03317797,0.00027,10]
[378947628,1755077442801,-417.15472785,0.00027,10]
[378947630,1755077442811,-417.15472785,0.00027,3]
[378947632,1755077442820,-156.76,0.00027002,7]
[378947634,1755077442829,-2524.43,0.00027082,7]
[378947636,1755077442839,-156.76,0.00027102,7]
[378947638,1755077442848,-617.0,0.00027124,2]
[378947640,1755077442857,-5500.0,0.00027152,2]
[378947642,1755077442867,-2524.43,0.00027182,7]
[378947644,1755077442877,-156.76,0.00027202,7]
[378947646,1755077442886,-1160.0,0.00027279,2]
[378947648,1755077442895,-2524.43,0.00027282,7]
[378947650,1755077442905,-156.76,0.00027302,7]
[378947652,1755077442915,-2524.43,0.00027382,7]
[378947664,1755077443018,-500.0,0.00027383,5]
[378947666,1755077443028,-242.0,0.00027386,7]
[378947668,1755077443038,-196.85199175,0.0002739,2]
[378947670,1755077443048,-160.5329498,0.0002739,7]
[378947672,1755077443058,-500.0,0.00027397,6]
[378947674,1755077443068,-300.0,0.00027397,5]
[378947676,1755077443078,-500.0,0.00027397,5]
[378947678,1755077443087,-1000.0,0.00027397,5]
[378947680,1755077443098,-500.0,0.00027397,5]
[378947682,1755077443107,-617.0,0.00027398,2]
[378947685,1755077443118,-154.40253935,0.000274,4]
[378947687,1755077443128,-154.40253935,0.000274,4]
[378947689,1755077443137,-154.40253935,0.000274,4]
[378947690,1755077443147,-154.4,0.000274,4]
[378947693,1755077443157,-160.12115191,0.000274,4]
[378947695,1755077443166,-160.12115191,0.000274,4]
[378947697,1755077443176,-160.12115191,0.000274,4]
[378947699,1755077443185,-160.12115191,0.000274,4]
[378947701,1755077443194,-160.12115191,0.000274,4]
[378947703,1755077443203,-160.12115191,0.000274,4]
[378947705,1755077443212,-160.12115191,0.000274,4]
[378947707,1755077443221,-160.12115191,0.000274,4]
[378947709,1755077443231,-160.12,0.000274,4]
[378947711,1755077443241,-156.76,0.00027402,15]
[378947713,1755077443250,-2524.43,0.00027482,15]
[378947715,1755077443260,-4000.0,0.000275,2]
[378947718,1755077443270,-45167.56371254,0.000275,2]
[378947721,1755077443279,-248.6237431,0.000275,4]
[378947724,1755077443288,-156.827,0.00027502,15]
[378947727,1755077443298,-11630.12968842,0.00027522,2]
[378947730,1755077443308,-2524.43,0.00027582,15]
[378947732,1755077443317,-242.0,0.00027616,14]
[378947735,1755077443326,-617.0,0.00027672,2]
[378947739,1755077443337,-2524.43,0.00027682,15]
[378947742,1755077443346,-200.0,0.00027697,120]
[378947745,1755077443355,-6000.0,0.000277,5]
[378947748,1755077443364,-22716.32507345,0.0002775,7]
[378947750,1755077443376,-67242.54040369,0.0002775,7]
[378947752,1755077443386,-161.2446,0.00027772,2]
[378947754,1755077443395,-2524.43,0.00027782,15]
[378947756,1755077443404,-1260.0,0.00027827,2]
[378947758,1755077443414,-161.2446,0.00027872,2]
[378947760,1755077443424,-200.0,0.00027875,20]
[378947762,1755077443434,-200.0,0.00027875,20]
[378947764,1755077443443,-200.0,0.00027875,20]
[378947766,1755077443453,-200.0,0.00027875,20]
[378947768,1755077443462,-200.0,0.00027875,20]
[378947770,1755077443472,-200.0,0.00027875,20]
[378947772,1755077443482,-200.0,0.00027875,20]
[378947774,1755077443491,-200.0,0.00027875,20]
[378947776,1755077443501,-200.0,0.00027875,20]
[378947778,1755077443510,-200.0,0.00027875,20]
[378947781,1755077443520,-200.0,0.00027875,20]
[378947783,1755077443529,-200.0,0.00027875,20]
[378947785,1755077443539,-200.0,0.00027875,20]
[378947787,1755077443548,-200.0,0.00027875,20]
[378947789,1755077443559,-200.0,0.00027875,20]
[378947790,1755077443569,-200.0,0.00027875,20]
[378947793,1755077443578,-200.0,0.00027875,20]
[378947795,1755077443589,-200.0,0.00027875,20]
[378947797,1755077443598,-200.0,0.00027875,20]
[378947798,1755077443608,-200.0,0.00027875,20]
[378947801,1755077443618,-200.0,0.00027875,20]
[378947803,1755077443628,-200.0,0.00027875,20]
[378947805,1755077443640,-208.0,0.00027875,20]
[378947807,1755077443650,-2524.43,0.00027882,15]
[378947809,1755077443660,-500.0,0.00027931,5]
[378947811,1755077443669,-730.30698584,0.00027945,5]
[378947813,1755077443678,-503.5308624,0.00027945,5]
[378947815,1755077443688,-617.0,0.00027946,2]
[378947817,1755077443697,-574.59089809,0.00027966,4]
[378947819,1755077443706,-161.2446,0.00027972,2]
[378947821,1755077443716,-2524.43,0.00027982,15]
[378947823,1755077443726,-1195.39322345,0.0002799,7]
[378947825,1755077443735,-553.05782971,0.00028,2]
[378947827,1755077443745,-160.0,0.00028,3]
[378947829,1755077443754,-461.84428375,0.00028,3]
[378947831,1755077443763,-160.0,0.00028,3]
[378947833,1755077443773,-160.0,0.00028,3]
[378947835,1755077443782,-216.72950928,0.00028,3]
[378947837,1755077443792,-843.29866057,0.00028,3]
[378947839,1755077443801,-232.03317797,0.00028,3]
[378947841,1755077443810,-161.2446,0.00028072,2]
[378947843,1755077443820,-2524.43,0.00028082,15]
[378947845,1755077443830,-11630.12968842,0.00028117,2]
[378947847,1755077443839,-1300.0,0.0002814,2]
[378947849,1755077443849,-500.0,0.00028143,2]
[378947851,1755077443859,-500.0,0.00028167,2]
[378947853,1755077443869,-161.2446,0.00028172,2]
[378947855,1755077443878,-2524.43,0.00028182,15]
[378947857,1755077443887,-1356.56,0.00028219,5]
[378947859,1755077443897,-617.0,0.0002822,2]
[378947861,1755077443906,-500.0,0.00028228,2]
[378947863,1755077443915,-200.0,0.00028229,120]
[378947865,1755077443925,-6500.0,0.00028248,5]
[378947867,1755077443935,-2524.43,0.00028282,15]
[378947869,1755077443944,-1300.0,0.00028308,2]
[378947871,1755077443954,-800.0,0.00028309,2]
[378947873,1755077443963,-500.0,0.00028362,2]
[378947875,1755077443972,-1360.0,0.00028375,2]
[378947877,1755077443981,-1300.0,0.00028387,2]
[378947879,1755077443991,-1300.0,0.00028397,2]
[378947881,1755077444000,-500.0,0.00028406,2]
[378947883,1755077444010,-800.0,0.00028421,2]
[378947885,1755077444019,-1300.0,0.00028444,2]
[378947887,1755077444029,-500.0,0.00028479,5]
[378947889,1755077444038,-5447.91612041,0.00028481,15]
[378947891,1755077444048,-5000.0,0.00028481,20]
[378947893,1755077444058,-5000.0,0.00028481,21]
[378947895,1755077444068,-5000.0,0.00028481,16]
[378947897,1755077444078,-5000.0,0.00028481,15]
[378947899,1755077444087,-2524.43,0.00028482,15]
[378947901,1755077444098,-5044.74082126,0.00028487,19]
[378947903,1755077444107,-10.65771276,0.00028492,21]
[378948004,1755077445061,-500.0,0.00019749,2]
[378948006,1755077445071,-1367.52569249,0.00019749,2]
[378948008,1755077445080,-1367.52569249,0.00019749,2]
[378948010,1755077445089,-525.18186352,0.00019749,2]
[378948012,1755077445099,-1367.52569249,0.00019749,2]
[378948013,1755077445109,-1367.52569249,0.00019749,2]
[378948015,1755077445119,-1367.52569249,0.00019749,2]
[378948017,1755077445128,-1367.52569249,0.00019749,2]
[378948019,1755077445137,-1367.52569249,0.00019749,2]
[378948021,1755077445146,-1367.52569249,0.00019749,2]
[378948023,1755077445156,-1367.52569249,0.00019749,2]
[378948025,1755077445165,-1367.52569249,0.00019749,2]
[378948027,1755077445174,-1367.52569249,0.00019749,2]
[378948029,1755077445183,-1367.52569249,0.00019749,2]
[378948031,1755077445194,-1367.52569249,0.00019749,2]
[378948033,1755077445203,-1367.52569249,0.00019749,2]
[378948035,1755077445212,-1367.52569249,0.00019749,2]
[378948038,1755077445222,-1367.52569249,0.00019749,2]
[378948040,1755077445231,-1367.52569249,0.00019749,2]
[378948042,1755077445241,-160.0,0.00020783,2]
[378948044,1755077445250,-160.0,0.00020783,2]
[378948046,1755077445259,-2226.71618329,0.00028492,21]
[378948073,1755077445488,-625.62698806,0.00028492,21]
[378948199,1755077446722,-436.34609954,0.00021645,10]
[378948204,1755077446763,-91.75157328,0.00021645,10]
[378948206,1755077446773,-972.0,0.00022548,2]
[378948208,1755077446783,-528.09767282,0.0002298,3]
[378948210,1755077446792,-528.09767282,0.00024,7]
[378948212,1755077446801,-349.66804908,0.000247,7]
[378948215,1755077446813,-178.42962374,0.000247,7]
[378948217,1755077446822,-1034.00853371,0.00025,2]
[378948604,1755078077700,178.266525,0.00013699,2]
[378948607,1755078215076,304.18,0.0001784,2]
[378948671,1755078632294,-153.749091,0.0001975,2]
[378948672,1755078632304,-207.99093611,0.00019888,2]
[378948673,1755078632313,-300.0,0.00019897,2]
[378948674,1755078632322,-300.0,0.00019897,2]
[378948676,1755078632332,-92.1267933,0.00019897,2]
[378948726,1755078638411,-207.8732067,0.00019897,2]
[378948727,1755078638420,-236.0,0.00019897,2]
[378948730,1755078638430,-300.0,0.00019897,2]
[378948732,1755078638440,-300.0,0.00019897,2]
[378948734,1755078638449,-460.7267933,0.00019897,2]
[378948747,1755078638570,-500.79876873,0.00019897,2]
[378948754,1755078638627,-115.47443797,0.00019897,2]
[378948756,1755078638636,-200.0,0.00020295,20]
[378948758,1755078638646,-200.0,0.00020295,20]
[378948760,1755078638655,-200.0,0.00020295,20]
[378948763,1755078638665,-200.0,0.00020295,20]
[378948766,1755078638674,-200.0,0.00020295,20]
[378948769,1755078638683,-200.0,0.00020295,20]
[378948773,1755078638692,-200.0,0.00020295,20]
[378948776,1755078638702,-200.0,0.00020295,20]
[378948778,1755078638711,-1701.85249311,0.00020829,2]
[378948780,1755078638720,-21.36111835,0.00020929,2]
[378948782,1755078638731,-138.63888165,0.00020929,2]
[378948784,1755078638741,-417.15472785,0.00020929,2]
[378948786,1755078638750,-843.29866057,0.00020929,2]
[378948788,1755078638759,-160.0,0.00020929,2]
[378948790,1755078638768,-160.0,0.00020929,2]
[378948792,1755078638777,-420.0,0.00021668,2]
[378948794,1755078638786,-300.0,0.00021668,2]
[378948796,1755078638795,-479.67047086,0.00021917,2]
[378948798,1755078638805,-1701.85249308,0.00021991,2]
[378948800,1755078638814,-200.0,0.00022282,20]
[378948802,1755078638824,-200.0,0.00022282,20]
[378948804,1755078638833,-200.0,0.00022282,20]
[378948806,1755078638843,-200.0,0.00022282,20]
[378948808,1755078638852,-200.0,0.00022282,20]
[378948810,1755078638862,-200.0,0.00022282,20]
[378948812,1755078638871,-200.0,0.00022282,20]
[378948815,1755078638882,-200.0,0.00022282,20]
[378948817,1755078638891,-200.0,0.00022282,20]
[378948819,1755078638901,-200.0,0.00022282,20]
[378948821,1755078638916,-240.0,0.00022282,20]
[378948823,1755078638925,-500.0,0.00022999,5]
[378948825,1755078638934,-497.96,0.00023,2]
[378948827,1755078638944,-412.67838537,0.00023066,2]
[378948829,1755078638956,-1738.32161463,0.00023066,2]
[378948831,1755078638966,-636.0,0.00023066,2]
[378948833,1755078638975,-972.0,0.00023066,2]
[378948835,1755078638985,-408.0,0.00023066,2]
[378948837,1755078638994,-500.0,0.00023175,2]
[378948839,1755078639003,-194.35645894,0.00023398,2]
[378948841,1755078639012,-500.0,0.00023398,2]
[378948843,1755078639021,-163.1670676,0.00023398,2]
[378948845,1755078639031,-382.51198239,0.00023398,2]
[378948847,1755078639040,-500.0,0.00023398,2]
[378948849,1755078639050,-500.0,0.00023398,2]
[378948851,1755078639059,-169.61703664,0.00023398,2]
[378948853,1755078639068,-190.72964977,0.00023398,2]
[378948855,1755078639077,-500.0,0.00023398,2]